fUST/lending_fUST_20241130
["ID","MTS","AMOUNT","RATE_DAILY","PERIOD"]
[343854395,1732978247290,-500.0,0.00024657,3]
[343854396,1732978247300,-151.0,0.00024657,7]
[343854397,1732978247310,-500.0,0.00024657,3]
[343854398,1732978247320,-502.21234256,0.00024657,3]
[343854399,1732978247330,-500.0,0.00024657,3]
[343854400,1732978247339,-500.0,0.00024657,3]
[343854401,1732978247349,-500.0,0.00024657,3]
[343854402,1732978247358,-3373.93,0.00024657,3]
[343854403,1732978247369,-512.49,0.00024657,3]
[343854404,1732978247378,-500.0,0.00024657,3]
[343854405,1732978247387,-500.0,0.00024657,3]
[343854406,1732978247397,-500.0,0.00024657,3]
[343854407,1732978247407,-1477.13,0.00024657,3]
[343854408,1732978247416,-500.0,0.00024657,3]
[343854409,1732978247426,-500.0,0.00024657,3]
[343854410,1732978247445,-500.0,0.00024657,3]
[343854411,1732978247455,-1690.79,0.00024657,3]
[343854412,1732978247465,-291.00441856,0.00024657,3]
[343854413,1732978247475,-500.0,0.00024657,3]
[343854414,1732978247484,-151.0,0.00024657,7]
[343854415,1732978247494,-151.0,0.00024657,7]
[343854416,1732978247505,-151.0,0.00024657,7]
[343854417,1732978247516,-500.0,0.00024657,3]
[343854418,1732978247527,-181.547394,0.00024657,7]
[343854419,1732978247538,-500.0,0.00024657,3]
[343854420,1732978247549,-500.0,0.00024657,3]
[343854421,1732978247560,-500.0,0.00024657,3]
[343854422,1732978247570,-500.0,0.00024657,3]
[343854423,1732978247580,-500.0,0.00024657,3]
[343854424,1732978247590,-500.0,0.00024657,3]
[343854425,1732978247600,-500.0,0.00024657,3]
[343854426,1732978247707,-562.51,0.00024657,3]
[343854427,1732978247718,-500.0,0.00024657,3]
[343854428,1732978247728,-500.0,0.00024657,3]
[343854429,1732978247737,-500.0,0.00024657,3]
[343854430,1732978247747,-500.0,0.00024657,3]
[343854431,1732978247756,-500.0,0.00024657,3]
[343854432,1732978247766,-500.0,0.00024657,3]
[343854433,1732978247776,-500.0,0.00024657,3]
[343854434,1732978247786,-500.0,0.00024657,3]
[343854435,1732978247796,-621.8,0.00024657,3]
[343854436,1732978247805,-843.42,0.00024657,3]
[343854437,1732978247815,-560.22,0.00024657,3]
[343854438,1732978247825,-500.0,0.00024657,3]
[343854439,1732978247834,-500.0,0.00024657,3]
[343854440,1732978247844,-653.03,0.00024657,3]
[343854441,1732978247853,-807.02,0.00024657,3]
[343854442,1732978247863,-500.0,0.00024657,3]
[343854443,1732978247875,-500.0,0.00024657,3]
[343854444,1732978247885,-500.0,0.00024657,3]
[343854445,1732978247894,-3841.58,0.00024657,3]
[343854446,1732978247904,-500.0,0.00024657,3]
[343854447,1732978247913,-500.0,0.00024657,3]
[343854448,1732978247923,-500.0,0.00024657,3]
[343854449,1732978247932,-500.0,0.00024657,3]
[343854450,1732978247942,-500.0,0.00024657,3]
[343854451,1732978247952,-500.0,0.00024657,3]
[343854452,1732978247961,-500.0,0.00024657,3]
[343854453,1732978247970,-541.03,0.00024657,3]
[343854454,1732978247979,-500.0,0.00024657,3]
[343854455,1732978247989,-500.0,0.00024657,3]
[343854456,1732978247999,-500.0,0.00024657,3]
[343854457,1732978248008,-500.0,0.00024657,3]
[343854458,1732978248018,-500.0,0.00024657,3]
[343854459,1732978248027,-500.0,0.00024657,3]
[343854460,1732978248037,-13125.9,0.00024657,3]
[343854461,1732978248047,-500.0,0.00024657,3]
[343854462,1732978248061,-500.0,0.00024657,3]
[343854463,1732978248070,-500.0,0.00024657,3]
[343854464,1732978248080,-8701.11,0.00024657,3]
[343854465,1732978248090,-500.0,0.00024657,3]
[343854466,1732978248100,-500.0,0.00024657,3]
[343854467,1732978248110,-500.0,0.00024657,3]
[343854468,1732978248122,-500.0,0.00024657,3]
[343854469,1732978248132,-500.0,0.00024657,3]
[343854470,1732978248143,-500.0,0.00024657,3]
[343854471,1732978248153,-500.0,0.00024657,3]
[343854472,1732978248162,-500.0,0.00024657,3]
[343854473,1732978248172,-500.0,0.00024657,3]
[343854474,1732978248181,-500.0,0.00024657,3]
[343854475,1732978248191,-500.0,0.00024657,3]
[343854476,1732978248201,-500.0,0.00024657,3]
[343854477,1732978248211,-2444.37,0.00024657,3]
[343854478,1732978248221,-500.0,0.00024657,3]
[343854479,1732978248230,-500.0,0.00024657,3]
[343854480,1732978248240,-485.8916313,0.00024657,3]
[343854481,1732978248250,-500.0,0.00024657,3]
[343854482,1732978248259,-647.65,0.00024657,3]
[343854483,1732978248269,-500.0,0.00024657,3]
[343854484,1732978248278,-587.99,0.00024657,3]
[343854485,1732978248288,-500.0,0.00024657,3]
[343854486,1732978248297,-500.0,0.00024657,3]
[343854487,1732978248307,-504.41921723,0.00024657,3]
[343854488,1732978248318,-500.0,0.00024657,3]
[343854489,1732978248328,-500.0,0.00024657,3]
[343854490,1732978248337,-2719.67,0.00024657,3]
[343854491,1732978248346,-500.0,0.00024657,3]
[343854492,1732978248355,-2735.5,0.00024657,2]
[343854493,1732978248365,-500.0,0.00024657,3]
[343854494,1732978248376,-500.0,0.00024657,3]
[343854495,1732978248386,-500.0,0.00024657,3]
[343854496,1732978248400,-500.0,0.00024657,3]
[343854497,1732978248410,-500.0,0.00024657,3]
[343854498,1732978248420,-500.0,0.00024657,3]
[343854499,1732978248429,-500.0,0.00024657,3]
[343854500,1732978248438,-596.5,0.00024657,3]
[343854501,1732978248448,-500.0,0.00024657,3]
[343854502,1732978248457,-500.0,0.00024657,3]
[343854503,1732978248467,-500.0,0.00024657,3]
[343854504,1732978248476,-866.85,0.00024657,3]
[343854505,1732978248486,-500.0,0.00024657,3]
[343854506,1732978248495,-500.0,0.00024657,3]
[343854507,1732978248504,-500.0,0.00024657,3]
[343854508,1732978248514,-500.0,0.00024657,3]
[343854509,1732978248527,-617.80877668,0.00024657,3]
[343854510,1732978248537,-500.0,0.00024657,3]
[343854511,1732978248547,-503.81636849,0.00024657,3]
[343854512,1732978248556,-500.0,0.00024657,3]
[343854513,1732978248566,-432.3592236,0.00024657,3]
[343854514,1732978248575,-500.0,0.00024657,3]
[343854515,1732978248586,-3630.19,0.00024657,3]
[343854516,1732978248596,-500.0,0.00024657,3]
[343854517,1732978248605,-500.0,0.00024657,3]
[343854518,1732978248615,-500.0,0.00024657,3]
[343854519,1732978248627,-500.0,0.00024657,3]
[343854520,1732978248637,-760.16,0.00024657,3]
[343854521,1732978248646,-1479.53,0.00024657,3]
[343854522,1732978248657,-517.94728591,0.00024657,3]
[343854523,1732978248667,-500.0,0.00024657,3]
[343854524,1732978248676,-500.0,0.00024657,3]
[343854525,1732978248686,-502.02,0.00024657,3]
[343854526,1732978248695,-505.34606217,0.00024657,3]
[343854527,1732978248705,-500.0,0.00024657,3]
[343854528,1732978248714,-775.18,0.00024657,3]
[343854529,1732978248723,-500.0,0.00024657,3]
[343854530,1732978248733,-500.0,0.00024657,3]
[343854531,1732978248743,-504.38302531,0.00024657,3]
[343854532,1732978248753,-500.0,0.00024657,3]
[343854533,1732978248762,-500.0,0.00024657,3]
[343854534,1732978248771,-500.0,0.00024673,2]
[343854535,1732978248781,-500.0,0.00024673,2]
[343854536,1732978248791,-500.0,0.00024673,2]
[343854537,1732978248800,-500.0,0.00024673,2]
[343854538,1732978248810,-500.0,0.00024673,2]
[343854539,1732978248820,-3000.0,0.000247,2]
[343854540,1732978248830,-926.3404,0.000247,2]
[343854541,1732978248839,-3000.0,0.0002471,2]
[343854542,1732978248849,-3000.0,0.0002472,2]
[343854543,1732978248858,-4350.98043,0.0002473,2]
[343854544,1732978248870,-151.0,0.0002473,7]
[343854545,1732978248880,-254.21592,0.0002473,7]
[343854546,1732978248890,-151.0,0.0002473,7]
[343854547,1732978248900,-150.711,0.00024758,2]
[343854548,1732978248909,-623.349,0.00024758,2]
[343854549,1732978248919,-2378.0,0.00024758,2]
[343854550,1732978248929,-2176.0,0.00024758,2]
[343854551,1732978248939,-666.0,0.00024831,2]
[343854552,1732978248948,-1169.27083333,0.00024831,7]
[343854553,1732978248958,-151.0,0.00024931,7]
[343854554,1732978248968,-151.0,0.00024931,7]
[343854555,1732978248977,-151.0,0.00024931,7]
[343854556,1732978248987,-151.0,0.00024931,7]
[343854557,1732978248998,-151.0,0.00024931,7]
[343854558,1732978249007,-151.0,0.00024931,7]
[343854559,1732978249016,-248.657222,0.00024931,7]
[343854560,1732978249026,-168.697214,0.00024931,7]
[343854561,1732978249035,-168.697214,0.00024931,7]
[343854562,1732978249045,-168.697214,0.00024931,7]
[343854563,1732978249058,-168.697214,0.00024931,7]
[343854564,1732978249068,-168.697214,0.00024931,7]
[343854565,1732978249078,-168.697214,0.00024931,7]
[343854566,1732978249087,-151.0,0.00024931,7]
[343854567,1732978249098,-269.977651,0.00024931,7]
[343854568,1732978249107,-1169.27083333,0.00024931,7]
[343854569,1732978249116,-500.0,0.00024931,3]
[343854570,1732978249129,-500.0,0.00024931,3]
[343854571,1732978249139,-500.0,0.00024931,3]
[343854572,1732978249148,-500.0,0.00024931,3]
[343854573,1732978249157,-500.0,0.00024931,3]
[343854574,1732978249166,-514.35057871,0.00024931,3]
[343854575,1732978249176,-500.0,0.00024931,3]
[343854576,1732978249186,-556.71,0.00024931,3]
[343854577,1732978249195,-500.0,0.00024931,3]
[343854578,1732978249204,-235.80148125,0.00024931,3]
[343854579,1732978249214,-511.20642253,0.00024931,3]
[343854580,1732978249223,-204.299239,0.00024931,7]
[343854581,1732978249232,-204.299239,0.00024931,7]
[343854582,1732978249243,-204.299239,0.00024931,7]
[343854583,1732978249252,-500.0,0.00024931,3]
[343854584,1732978249262,-204.299239,0.00024931,7]
[343854585,1732978249271,-204.299239,0.00024931,7]
[343854586,1732978249280,-204.299239,0.00024931,7]
[343854587,1732978249289,-711.92,0.00024931,3]
[343854588,1732978249299,-500.0,0.00024931,3]
[343854589,1732978249307,-541.77637307,0.00024931,3]
[343854590,1732978249317,-500.0,0.00024931,3]
[343854591,1732978249326,-500.0,0.00024931,3]
[343854592,1732978249335,-500.0,0.00024931,3]
[343854593,1732978249344,-500.0,0.00024931,3]
[343854594,1732978249354,-500.0,0.00024931,3]
[343854595,1732978249363,-151.78912953,0.00024931,3]
[343854596,1732978249374,-500.0,0.00024931,3]
[343854597,1732978249383,-500.0,0.00024931,3]
[343854598,1732978249393,-200.0,0.00024931,3]
[343854599,1732978249402,-501.84005463,0.00024931,3]
[343854600,1732978249411,-500.0,0.00024931,3]
[343854601,1732978249421,-515.88995398,0.00024931,3]
[343854602,1732978249429,-500.0,0.00024931,3]
[343854603,1732978249439,-500.0,0.00024931,3]
[343854604,1732978249448,-500.0,0.00024931,3]
[343854605,1732978249458,-500.0,0.00024931,3]
[343854606,1732978249467,-500.0,0.00024931,3]
[343854607,1732978249476,-531.11911408,0.00024931,3]
[343854608,1732978249486,-755.26,0.00024931,3]
[343854609,1732978249496,-500.0,0.00024931,3]
[343854610,1732978249505,-500.0,0.00024931,3]
[343854611,1732978249515,-500.0,0.00024931,3]
[343854612,1732978249524,-500.0,0.00024931,3]
[343854613,1732978249534,-500.0,0.00024931,3]
[343854614,1732978249545,-500.0,0.00024931,3]
[343854615,1732978249555,-511.22978306,0.00024931,3]
[343854616,1732978249564,-512.7522532,0.00024931,3]
[343854617,1732978249574,-500.0,0.00024931,3]
[343854618,1732978249583,-500.0,0.00024931,3]
[343854619,1732978249593,-500.0,0.00024931,3]
[343854620,1732978249602,-500.0,0.00024931,3]
[343854621,1732978249612,-500.0,0.00024931,3]
[343854622,1732978249623,-500.0,0.00024931,3]
[343854623,1732978249632,-500.0,0.00024931,3]
[343854624,1732978249642,-500.0,0.00024931,3]
[343854625,1732978249651,-500.0,0.00024931,3]
[343854626,1732978249661,-500.0,0.00024931,3]
[343854627,1732978249670,-500.0,0.00024931,3]
[343854628,1732978249680,-711.86,0.00024931,3]
[343854629,1732978249689,-500.0,0.00024931,3]
[343854630,1732978249699,-500.0,0.00024931,3]
[343854631,1732978249708,-627.56770991,0.00024931,3]
[343854632,1732978249717,-530.41463184,0.00024931,3]
[343854633,1732978249727,-500.0,0.00024931,3]
[343854634,1732978249736,-500.0,0.00024931,3]
[343854635,1732978249746,-500.0,0.00024931,3]
[343854636,1732978249755,-500.0,0.00024931,3]
[343854637,1732978249764,-500.0,0.00024931,3]
[343854638,1732978249774,-500.0,0.00024931,3]
[343854639,1732978249783,-152.611061,0.00024931,7]
[343854640,1732978249793,-500.0,0.00024931,3]
[343854641,1732978249802,-500.0,0.00024931,3]
[343854642,1732978249812,-500.0,0.00024931,3]
[343854643,1732978249822,-500.0,0.00024931,3]
[343854644,1732978249832,-500.0,0.00024931,3]
[343854645,1732978249926,-500.0,0.00024931,3]
[343854646,1732978249936,-500.0,0.00024931,3]
[343854647,1732978249946,-500.0,0.00024931,3]
[343854648,1732978249955,-174.05575716,0.00024931,3]
[343854649,1732978249965,-874.23,0.00024931,3]
[343854650,1732978249974,-500.0,0.00024931,3]
[343854651,1732978249983,-151.0,0.00024931,7]
[343854652,1732978249993,-151.0,0.00024931,7]
[343854653,1732978250003,-151.0,0.00024931,7]
[343854654,1732978250012,-500.0,0.00024931,3]
[343854655,1732978250021,-419.11544144,0.00024931,3]
[343854656,1732978250030,-500.0,0.00024931,3]
[343854657,1732978250039,-870.24,0.00024931,3]
[343854658,1732978250049,-500.0,0.00024931,3]
[343854659,1732978250062,-795.2,0.00024931,3]
[343854660,1732978250071,-500.0,0.00024931,3]
[343854661,1732978250080,-3086.24,0.00024931,3]
[343854662,1732978250091,-500.0,0.00024931,3]
[343854663,1732978250100,-500.0,0.00024931,3]
[343854664,1732978250110,-500.0,0.00024931,3]
[343854665,1732978250120,-500.0,0.00024931,3]
[343854666,1732978250131,-500.0,0.00024931,3]
[343854667,1732978250140,-699.85,0.00024931,3]
[343854668,1732978250149,-574.73553057,0.00024931,3]
[343854669,1732978250159,-500.0,0.00024931,3]
[343854670,1732978250168,-1136.5,0.00024931,3]
[343854671,1732978250177,-500.0,0.00024931,3]
[343854672,1732978250187,-500.0,0.00024931,3]
[343854673,1732978250196,-500.0,0.00024931,3]
[343854674,1732978250205,-334.42675404,0.00024931,3]
[343854675,1732978250215,-500.0,0.00024931,3]
[343854676,1732978250224,-500.0,0.00024931,3]
[343854677,1732978250233,-884.14,0.00024931,3]
[343854678,1732978250243,-500.0,0.00024931,3]
[343854679,1732978250252,-500.0,0.00024931,3]
[343854680,1732978250262,-500.0,0.00024931,3]
[343854681,1732978250272,-500.0,0.00024931,3]
[343854682,1732978250281,-500.0,0.00024931,3]
[343854683,1732978250291,-500.0,0.00024931,3]
[343854684,1732978250300,-500.0,0.00024931,3]
[343854685,1732978250309,-534.25,0.00024931,3]
[343854686,1732978250319,-500.0,0.00024931,3]
[343854687,1732978250328,-500.0,0.00024931,3]
[343854688,1732978250337,-500.0,0.00024931,3]
[343854689,1732978250347,-500.0,0.00024931,3]
[343854690,1732978250356,-500.0,0.00024931,3]
[343854691,1732978250365,-500.0,0.00024931,3]
[343854692,1732978250377,-500.0,0.00024931,3]
[343854693,1732978250386,-612.71,0.00024931,3]
[343854694,1732978250396,-500.0,0.00024931,3]
[343854695,1732978250405,-500.0,0.00024931,3]
[343854696,1732978250415,-498.33259157,0.00024931,3]
[343854697,1732978250424,-500.0,0.00024931,3]
[343854698,1732978250435,-500.0,0.00024931,3]
[343854699,1732978250444,-500.0,0.00024931,3]
[343854700,1732978250454,-819.07,0.00024931,3]
[343854701,1732978250464,-500.0,0.00024931,3]
[343854702,1732978250475,-500.0,0.00024931,3]
[343854703,1732978250484,-425.34829022,0.00024931,3]
[343854704,1732978250494,-500.0,0.00024931,3]
[343854705,1732978250503,-500.0,0.00024931,3]
[343854706,1732978250513,-642.87,0.00024931,3]
[343854707,1732978250523,-500.0,0.00024931,3]
[343854708,1732978250532,-529.9194532,0.00024931,3]
[343854709,1732978250541,-959.64,0.00024931,3]
[343854710,1732978250550,-500.0,0.00024931,3]
[343854711,1732978250560,-500.0,0.00024931,3]
[343854712,1732978250570,-500.0,0.00024931,3]
[343854713,1732978250579,-500.0,0.00024931,3]
[343854714,1732978250589,-425.64439677,0.00024931,3]
[343854715,1732978250598,-500.0,0.00024931,3]
[343854716,1732978250608,-489.76050072,0.00024931,3]
[343854717,1732978250618,-500.0,0.00024931,3]
[343854718,1732978250629,-500.0,0.00024931,3]
[343854719,1732978250639,-500.0,0.00024931,3]
[343854720,1732978250648,-500.0,0.00024931,3]
[343854721,1732978250660,-500.0,0.00024931,3]
[343854722,1732978250669,-500.0,0.00024931,3]
[343854723,1732978250678,-500.0,0.00024931,3]
[343854724,1732978250688,-512.42062233,0.00024931,3]
[343854725,1732978250697,-500.0,0.00024931,3]
[343854726,1732978250707,-500.0,0.00024931,3]
[343854727,1732978250716,-500.0,0.00024931,7]
[343854729,1732978250726,-150.23973784,0.00024931,7]
[343854731,1732978250736,-150.15,0.00024931,7]
[343854733,1732978250746,-150.12,0.00024931,7]
[343854735,1732978250755,-3373.93,0.00024931,3]
[343854737,1732978250764,-512.49,0.00024931,3]
[343854739,1732978250773,-500.0,0.00024931,3]
[343854741,1732978250784,-500.0,0.00024931,3]
[343854743,1732978250793,-367.02223327,0.00024931,3]
[343854745,1732978250802,-1477.13,0.00024931,3]
[343854747,1732978250811,-291.7408263,0.00024931,3]
[343854749,1732978250821,-500.0,0.00024931,3]
[343854751,1732978250830,-500.0,0.00024931,3]
[343854753,1732978250839,-1690.79,0.00024931,3]
[343854755,1732978250849,-464.98981746,0.00024931,3]
[343854757,1732978250858,-500.0,0.00024931,3]
[343854759,1732978250868,-500.0,0.00024931,3]
[343854761,1732978250879,-500.0,0.00024931,3]
[343854763,1732978250888,-500.0,0.00024931,3]
[343854765,1732978250897,-529.80227583,0.00024931,3]
[343854767,1732978250906,-500.0,0.00024931,3]
[343854769,1732978250916,-500.0,0.00024931,3]
[343854771,1732978250928,-562.51,0.00024931,3]
[343854773,1732978250937,-500.0,0.00024931,3]
[343854775,1732978250947,-500.0,0.00024931,3]
[343854777,1732978250956,-500.0,0.00024931,3]
[343854780,1732978250966,-500.0,0.00024931,3]
[343854782,1732978250975,-500.0,0.00024931,3]
[343854784,1732978250985,-512.78818207,0.00024931,3]
[343854786,1732978250995,-500.0,0.00024931,3]
[343854788,1732978251004,-621.8,0.00024931,3]
[343854789,1732978251013,-500.0,0.00024931,3]
[343854791,1732978251022,-843.42,0.00024931,3]
[343854793,1732978251032,-399.20849313,0.00024931,3]
[343854795,1732978251040,-500.0,0.00024931,3]
[343854797,1732978251051,-653.03,0.00024931,3]
[343854799,1732978251063,-807.02,0.00024931,3]
[343854801,1732978251072,-500.0,0.00024931,3]
[343854803,1732978251081,-500.0,0.00024931,3]
[343854805,1732978251090,-500.0,0.00024931,3]
[343854807,1732978251102,-3841.58,0.00024931,3]
[343854810,1732978251112,-500.0,0.00024931,3]
[343854811,1732978251122,-500.0,0.00024931,3]
[343854813,1732978251131,-500.0,0.00024931,3]
[343854815,1732978251140,-500.0,0.00024931,3]
[343854817,1732978251149,-500.0,0.00024931,3]
[343854819,1732978251158,-500.0,0.00024931,3]
[343854821,1732978251167,-507.91723667,0.00024931,3]
[343854823,1732978251176,-541.03,0.00024931,3]
[343854825,1732978251186,-500.0,0.00024931,3]
[343854827,1732978251195,-500.0,0.00024931,3]
[343854829,1732978251204,-500.0,0.00024931,3]
[343854831,1732978251213,-500.0,0.00024931,3]
[343854833,1732978251223,-500.0,0.00024931,3]
[343854835,1732978251232,-500.0,0.00024931,3]
[343854837,1732978251241,-13125.9,0.00024931,3]
[343854839,1732978251250,-500.0,0.00024931,3]
[343854841,1732978251259,-500.0,0.00024931,3]
[343854843,1732978251268,-500.0,0.00024931,3]
[343854845,1732978251277,-8701.11,0.00024931,3]
[343854847,1732978251286,-500.0,0.00024931,3]
[343854849,1732978251295,-500.0,0.00024931,7]
[343854851,1732978251304,-500.0,0.00024931,3]
[343854853,1732978251314,-2444.37,0.00024931,3]
[343854855,1732978251323,-500.0,0.00024931,3]
[343854857,1732978251332,-150.12,0.00024931,7]
[343854859,1732978251341,-500.0,0.00024931,3]
[343854861,1732978251351,-293.07369055,0.00024931,7]
[343854863,1732978251361,-647.65,0.00024931,3]
[343854865,1732978251370,-150.12,0.00024931,7]
[343854867,1732978251380,-500.0,0.00024931,3]
[343854869,1732978251389,-150.57364838,0.00024931,7]
[343854871,1732978251398,-500.0,0.00024931,7]
[343854874,1732978251409,-150.15,0.00024931,7]
[343854875,1732978251418,-500.0,0.00024931,7]
[343854877,1732978251427,-587.99,0.00024931,3]
[343854879,1732978251436,-150.15,0.00024931,2]
[343854881,1732978251445,-500.0,0.00024931,3]
[343854883,1732978251454,-500.0,0.00024931,3]
[343854885,1732978251463,-500.0,0.00024931,7]
[343854887,1732978251472,-500.0,0.00024931,3]
[343854889,1732978251481,-500.0,0.00024931,7]
[343854891,1732978251490,-150.12,0.00024931,2]
[343854893,1732978251500,-500.0,0.00024931,3]
[343854895,1732978251509,-2719.67,0.00024931,3]
[343854897,1732978251518,-150.12,0.00024931,7]
[343854900,1732978251533,-500.0,0.00024931,3]
[343854902,1732978251543,-2735.5,0.00024931,2]
[343854903,1732978251552,-500.0,0.00024931,3]
[343854905,1732978251561,-567.56751086,0.00024931,3]
[343854907,1732978251570,-500.0,0.00024931,3]
[343854909,1732978251580,-500.0,0.00024931,3]
[343854911,1732978251590,-224.08075886,0.00024931,3]
[343854913,1732978251599,-596.5,0.00024931,3]
[343854915,1732978251608,-500.0,0.00024931,3]
[343854917,1732978251617,-500.0,0.00024931,3]
[343854919,1732978251628,-500.0,0.00024931,3]
[343854921,1732978251637,-866.85,0.00024931,3]
[343854923,1732978251646,-500.0,0.00024931,3]
[343854925,1732978251656,-500.0,0.00024931,3]
[343854927,1732978251665,-500.0,0.00024931,3]
[343854929,1732978251674,-500.0,0.00024931,3]
[343854931,1732978251683,-500.0,0.00024931,3]
[343854933,1732978251693,-3630.19,0.00024931,3]
[343854935,1732978251702,-500.0,0.00024931,3]
[343854937,1732978251711,-264.24716709,0.00024931,3]
[343854939,1732978251721,-500.0,0.00024931,3]
[343854941,1732978251730,-760.16,0.00024931,3]
[343854943,1732978251740,-1479.53,0.00024931,3]
[343854945,1732978251749,-500.0,0.00024931,3]
[343854947,1732978251758,-502.02,0.00024931,3]
[343854949,1732978251768,-519.99524464,0.00024931,3]
[343854951,1732978251777,-775.18,0.00024931,3]
[343854953,1732978251787,-500.0,0.00024931,3]
[343854955,1732978251796,-500.0,0.00024931,3]
[343854957,1732978251805,-500.0,0.00024931,3]
[343854959,1732978251815,-500.65911155,0.00024973,2]
[343854961,1732978251824,-500.0,0.00024973,2]
[343854963,1732978251833,-263.40478603,0.00024973,2]
[343854965,1732978251842,-500.0,0.00024973,2]
[343854967,1732978251851,-1620.924,0.00025,30]
[343854977,1732978251931,-155.01550887,0.00025,2]
[343854979,1732978251950,-99968.9560945,0.00025,2]
[343854981,1732978251960,-500.0,0.00025,4]
[343854983,1732978251970,-500.0,0.00025,4]
[343854985,1732978251979,-500.0,0.00025,3]
[343854987,1732978251988,-500.0,0.00025,3]
[343854989,1732978251998,-1189.5172187,0.00025,2]
[343854991,1732978252008,-347.70282279,0.00025,2]
[343854993,1732978252017,-830.20372247,0.00025,2]
[343854995,1732978252027,-200.0,0.00025,7]
[343854997,1732978252037,-500.000001,0.00025,2]
[343854998,1732978252047,-297.240904,0.00025,7]
[343854999,1732978252063,-151.0,0.00025,7]
[343855000,1732978252073,-151.0,0.00025,7]
[343855001,1732978252083,-168.697214,0.00025,7]
[343855002,1732978252092,-168.697214,0.00025,7]
[343855003,1732978252103,-168.697214,0.00025,7]
[343855004,1732978252112,-168.697214,0.00025,7]
[343855005,1732978252121,-52824.4505018,0.00025,2]
[343855006,1732978252235,-70687.84072239,0.00025,2]
[343855007,1732978252245,-1169.27083333,0.00025,7]
[343855008,1732978252254,-204.299239,0.00025,7]
[343855009,1732978252264,-204.299239,0.00025,7]
[343855010,1732978252274,-204.299239,0.00025,7]
[343855011,1732978252283,-204.299239,0.00025,7]
[343855012,1732978252292,-784.911949,0.00025,17]
[343855013,1732978252301,-151.0,0.00025,7]
[343855015,1732978252311,-151.0,0.00025,7]
[343855017,1732978252320,-823.0,0.00025088,2]
[343855019,1732978252329,-2272.71366762,0.0002509,2]
[343855021,1732978252338,-500.0,0.00025205,7]
[343855023,1732978252348,-150.93163595,0.00025205,7]
[343855025,1732978252357,-500.0,0.00025205,7]
[343855027,1732978252367,-200.9148727,0.00025205,7]
[343855029,1732978252377,-150.12,0.00025205,7]
[343855031,1732978252387,-500.0,0.00025205,7]
[343855033,1732978252396,-500.0,0.00025205,7]
[343855035,1732978252405,-500.0,0.00025205,7]
[343855037,1732978252414,-849.88,0.00025205,7]
[343855039,1732978252423,-150.12,0.00025205,7]
[343855041,1732978252433,-151.0,0.00025205,7]
[343855043,1732978252442,-151.0,0.00025205,7]
[343855045,1732978252451,-168.697214,0.00025205,7]
[343855047,1732978252461,-168.697214,0.00025205,7]
[343855049,1732978252470,-168.697214,0.00025205,7]
[343855051,1732978252480,-168.697216,0.00025205,7]
[343855053,1732978252489,-500.0,0.00025205,3]